fUST/lending_fUST_20240328
["ID","MTS","AMOUNT","RATE_DAILY","PERIOD"]
[320809521,1711564240816,-26149.58738051,0.00035958,3]
[320809702,1711564243929,-2832.86441364,0.00025114,9]
[320809705,1711564243940,-166.9229145,0.00028008,3]
[320809707,1711564243950,-500.61957618,0.00030478,2]
[320809709,1711564243959,-10946.59268256,0.00035958,3]
[320809710,1711564243970,-616.78,0.00035958,4]
[320809713,1711564243980,-627.21,0.00035958,4]
[320809715,1711564243989,-500.0,0.00035958,4]
[320809717,1711564243998,-967.09,0.00035958,4]
[320809719,1711564244007,-1847.18,0.00035958,4]
[320809720,1711564244016,-1552.86,0.00035958,4]
[320809722,1711564244027,-1530.87,0.00035958,4]
[320809724,1711564244036,-500.0,0.00035958,4]
[320809726,1711564244044,-8913.75,0.00035958,4]
[320809728,1711564244053,-500.0,0.00035958,4]
[320809730,1711564244063,-500.0,0.00035958,4]
[320809732,1711564244073,-500.0,0.00035958,4]
[320809734,1711564244083,-500.0,0.00036327,4]
[320809736,1711564244093,-500.0,0.00036327,4]
[320809738,1711564244102,-1198.27,0.00036327,4]
[320809741,1711564244116,-500.0,0.00036327,4]
[320809742,1711564244126,-2454.68,0.00036327,4]
[320809745,1711564244137,-2060.33,0.00036327,2]
[320809747,1711564244147,-704.38,0.00036327,4]
[320809749,1711564244156,-7980.88,0.00036327,4]
[320809751,1711564244166,-1542.14,0.00036327,4]
[320809752,1711564244175,-253.08929013,0.00036625,4]
[320809754,1711564244184,-500.0,0.00036625,4]
[320809756,1711564244193,-603.24,0.00036625,4]
[320809759,1711564244203,-535.62997314,0.00036625,4]
[320809760,1711564244212,-500.0,0.00036625,4]
[320809761,1711564244221,-2111.45,0.00038597,7]
[320809762,1711564244230,-500.0,0.00038597,4]
[320809763,1711564244239,-616.78,0.00038698,4]
[320809764,1711564244248,-627.21,0.00038698,4]
[320809765,1711564244257,-500.0,0.00038698,4]
[320809766,1711564244266,-967.09,0.00038698,4]
[320809767,1711564244276,-1847.18,0.00038698,4]
[320809768,1711564244285,-1552.86,0.00038698,4]
[320809769,1711564244295,-1530.87,0.00038698,4]
[320809770,1711564244304,-500.0,0.00038698,4]
[320809771,1711564244313,-8913.75,0.00038698,4]
[320809772,1711564244322,-209.6042186,0.00038698,4]
[320809773,1711564244331,-500.0,0.00038698,4]
[320809775,1711564244340,-500.0,0.00038698,4]
[320809777,1711564244349,-500.0,0.00039067,4]
[320809779,1711564244359,-500.0,0.00039067,4]
[320809781,1711564244369,-1198.27,0.00039067,4]
[320809783,1711564244378,-500.0,0.00039067,4]
[320809785,1711564244387,-2454.68,0.00039067,4]
[320809787,1711564244397,-2060.33,0.00039067,2]
[320809789,1711564244407,-704.38,0.00039067,4]
[320809791,1711564244419,-7980.88,0.00039067,4]
[320809793,1711564244427,-1542.14,0.00039067,4]
[320809795,1711564244440,-500.0,0.00039365,4]
[320809797,1711564244449,-603.24,0.00039365,4]
[320809799,1711564244458,-598.873205,0.00039365,4]
[320809801,1711564244467,-1730.95686747,0.000399,2]
[320809803,1711564244476,-155.29475425,0.0004,2]
[320809805,1711564244485,-155.19429413,0.0004,4]
[320809807,1711564244494,-6250.0,0.00040183,120]
[320809809,1711564244503,-500.0,0.00041096,31]
[320809811,1711564244512,-500.0,0.00041096,31]
[320809813,1711564244521,-500.0,0.00041096,31]
[320809815,1711564244529,-500.0,0.00041096,31]
[320809817,1711564244538,-500.0,0.00041096,31]
[320809819,1711564244549,-278.67638172,0.00041096,31]
[320809821,1711564244558,-500.0,0.00041096,31]
[320809823,1711564244568,-500.0,0.00041096,31]
[320809825,1711564244577,-500.0,0.00041096,31]
[320809827,1711564244586,-500.0,0.00041096,31]
[320809829,1711564244595,-500.0,0.00041096,31]
[320809831,1711564244604,-402.42384042,0.00041096,31]
[320809833,1711564244615,-500.0,0.00041096,31]
[320809835,1711564244624,-500.0,0.00041096,31]
[320809837,1711564244634,-500.0,0.00041096,31]
[320809839,1711564244644,-500.0,0.00041096,31]
[320809841,1711564244653,-500.0,0.00041096,31]
[320809843,1711564244662,-500.0,0.00041096,31]
[320809845,1711564244671,-500.0,0.00041096,31]
[320809847,1711564244680,-347.04972217,0.00041337,4]
[320809849,1711564244689,-270.68452976,0.00041337,4]
[320809851,1711564244698,-2111.45,0.00041337,7]
[320809853,1711564244707,-500.0,0.00041337,4]
[320809855,1711564244715,-616.78,0.00041438,4]
[320809856,1711564244724,-627.21,0.00041438,4]
[320809858,1711564244734,-500.0,0.00041438,4]
[320809860,1711564244742,-967.09,0.00041438,4]
[320809862,1711564244751,-1847.18,0.00041438,4]
[320809864,1711564244760,-1552.86,0.00041438,4]
[320809866,1711564244770,-1530.87,0.00041438,4]
[320809868,1711564244779,-500.0,0.00041438,4]
[320809870,1711564244787,-8913.75,0.00041438,4]
[320809872,1711564244797,-500.0,0.00041438,4]
[320809874,1711564244806,-500.0,0.00041438,4]
[320809876,1711564244815,-500.0,0.00041807,4]
[320809878,1711564244823,-500.0,0.00041807,4]
[320809880,1711564244834,-1198.27,0.00041807,4]
[320809882,1711564244843,-500.0,0.00041807,4]
[320809884,1711564244852,-2454.68,0.00041807,4]
[320809886,1711564244863,-2060.33,0.00041807,2]
[320809888,1711564244872,-704.38,0.00041807,4]
[320809890,1711564244881,-7980.88,0.00041807,4]
[320809892,1711564244890,-1542.14,0.00041807,4]
[320809894,1711564244899,-2000.0,0.00042004,2]
[320809896,1711564244908,-194.49396045,0.00042064,4]
[320809898,1711564244917,-557.84477377,0.00042104,4]
[320809900,1711564244927,-603.24,0.00042104,4]
[320809902,1711564244937,-155.00620025,0.00042282,4]
[320809904,1711564244946,-2111.45,0.00044077,7]
[320809906,1711564244955,-500.0,0.00044077,4]
[320809908,1711564244964,-616.78,0.00044177,4]
[320809910,1711564244973,-627.21,0.00044177,4]
[320809912,1711564244983,-500.0,0.00044177,4]
[320809914,1711564244992,-967.09,0.00044177,4]
[320809916,1711564245002,-1847.18,0.00044177,4]
[320809918,1711564245011,-1552.86,0.00044177,4]
[320809920,1711564245020,-1530.87,0.00044177,4]
[320809922,1711564245030,-500.0,0.00044177,4]
[320809924,1711564245039,-8913.75,0.00044177,4]
[320809926,1711564245049,-500.0,0.00044177,4]
[320809928,1711564245058,-500.0,0.00044177,4]
[320809930,1711564245068,-500.0,0.00044546,4]
[320809932,1711564245077,-500.0,0.00044546,4]
[320809934,1711564245086,-1198.27,0.00044546,4]
[320809936,1711564245096,-500.0,0.00044546,4]
[320809938,1711564245105,-2454.68,0.00044546,4]
[320809940,1711564245116,-2060.33,0.00044546,2]
[320809942,1711564245125,-704.38,0.00044546,4]
[320809944,1711564245134,-7980.88,0.00044546,4]
[320809946,1711564245143,-1542.14,0.00044546,4]
[320809948,1711564245152,-603.24,0.00044844,4]
[320809950,1711564245161,-6250.0,0.00045205,120]
[320809952,1711564245171,-172.78579841,0.00046348,3]
[320809954,1711564245180,-2111.45,0.00046816,7]
[320809956,1711564245189,-500.0,0.00046816,4]
[320809958,1711564245199,-616.78,0.00046917,4]
[320809960,1711564245208,-627.21,0.00046917,4]
[320809962,1711564245217,-500.0,0.00046917,4]
[320809964,1711564245226,-967.09,0.00046917,4]
[320809966,1711564245235,-1847.18,0.00046917,4]
[320809968,1711564245245,-1552.86,0.00046917,4]
[320809970,1711564245254,-1530.87,0.00046917,4]
[320809972,1711564245263,-500.0,0.00046917,4]
[320809974,1711564245273,-8913.75,0.00046917,4]
[320809976,1711564245282,-354.24656788,0.00046917,4]
[320809978,1711564245296,-500.0,0.00046917,4]
[320809980,1711564245306,-101122.4308537,0.0004698,120]
[320809982,1711564245315,-1153.50524087,0.0004698,4]
[320809985,1711564245325,-24558.17200859,0.0004698,4]
[320809986,1711564245335,-500.0,0.0004698,4]
[320809988,1711564245344,-29286.02580417,0.0004698,4]
[320809990,1711564245353,-225.09608131,0.0004698,2]
[320809992,1711564245365,-500.0,0.0004698,4]
[320809994,1711564245374,-171.01221067,0.0004698,4]
[320809997,1711564245383,-9874.41875558,0.00047,4]
[320809998,1711564245393,-500.0,0.00047286,4]
[320810000,1711564245403,-500.0,0.00047286,4]
[320810002,1711564245413,-1198.27,0.00047286,4]
[320810005,1711564245422,-500.0,0.00047286,4]
[320810006,1711564245432,-2454.68,0.00047286,4]
[320810008,1711564245441,-2060.33,0.00047286,2]
[320810010,1711564245452,-704.38,0.00047286,4]
[320810012,1711564245462,-7980.88,0.00047286,4]
[320810014,1711564245472,-1542.14,0.00047286,4]
[320810016,1711564245482,-603.24,0.00047584,4]
[320810019,1711564245494,-83864.09988084,0.0004799,120]
[320810021,1711564245504,-621.88,0.00048,7]
[320810023,1711564245513,-1000.0,0.00048551,2]
[320810025,1711564245522,-392.7851556,0.000489,120]
[320810027,1711564245531,-392.7851556,0.000489,120]
[320810029,1711564245540,-392.7851556,0.000489,120]
[320810030,1711564245550,-392.7851556,0.000489,120]
[320810033,1711564245560,-392.7851556,0.000489,120]
[320810035,1711564245571,-392.7851556,0.000489,120]
[320810036,1711564245581,-392.7851556,0.000489,120]
[320810038,1711564245590,-392.7851556,0.000489,120]
[320810040,1711564245599,-392.7851556,0.000489,120]
[320810042,1711564245608,-392.7851556,0.000489,120]
[320810044,1711564245618,-392.7851556,0.000489,120]
[320810046,1711564245627,-392.7851556,0.000489,120]
[320810048,1711564245637,-392.7851556,0.000489,120]
[320810050,1711564245647,-392.7851556,0.000489,120]
[320810052,1711564245656,-392.7851556,0.000489,120]
[320810054,1711564245665,-392.7851556,0.000489,120]
[320810056,1711564245675,-392.7851556,0.000489,120]
[320810058,1711564245684,-151.29097503,0.000489,120]
[320810060,1711564245693,-151.29097503,0.000489,120]
[320810062,1711564245701,-151.29097503,0.000489,120]
[320810064,1711564245710,-151.29097503,0.000489,120]
[320810066,1711564245720,-151.29097503,0.000489,120]
[320810068,1711564245728,-151.29097503,0.000489,120]
[320810070,1711564245737,-151.29097503,0.000489,120]
[320810072,1711564245746,-151.29097503,0.000489,120]
[320810074,1711564245755,-151.29097503,0.000489,120]
[320810076,1711564245764,-151.29097503,0.000489,120]
[320810078,1711564245773,-151.29097503,0.000489,120]
[320810080,1711564245782,-151.29097503,0.000489,120]
[320810082,1711564245791,-151.29097503,0.000489,120]
[320810084,1711564245800,-151.29097503,0.000489,120]
[320810086,1711564245809,-151.29097503,0.000489,120]
[320810088,1711564245818,-392.7851556,0.00048902,120]
[320810090,1711564245828,-1500.0,0.00049,2]
[320810092,1711564245837,-52563.84996739,0.00049,2]
[320810094,1711564245846,-183.732375,0.00049,120]
[320810096,1711564245854,-200.0,0.00049,120]
[320810098,1711564245865,-1934.768721,0.00049,68]
[320810100,1711564245874,-500.0,0.0004905,4]
[320810102,1711564245883,-1182.34,0.00049052,4]
[320810104,1711564245892,-151.29097503,0.00049313,120]
[320810106,1711564245901,-500.0,0.00049315,120]
[320810108,1711564245910,-10000.0,0.00049315,30]
[320810109,1711564245919,-506.99398419,0.00049315,30]
[320810112,1711564245929,-3917.96418511,0.00049357,120]
[320810114,1711564245938,-392.7851556,0.00049401,120]
[320810116,1711564245947,-2111.45,0.00049556,7]
[320810118,1711564245956,-500.0,0.00049556,120]
[320810119,1711564245965,-616.78,0.00049657,120]
[320810122,1711564245975,-627.21,0.00049657,120]
[320810124,1711564245984,-500.0,0.00049657,120]
[320810125,1711564245994,-967.09,0.00049657,120]
[320810127,1711564246003,-1847.18,0.00049657,120]
[320810129,1711564246012,-1552.86,0.00049657,120]
[320810131,1711564246021,-1530.87,0.00049657,120]
[320810133,1711564246030,-500.0,0.00049657,120]
[320810135,1711564246040,-8913.75,0.00049657,120]
[320810139,1711564246050,-500.0,0.00049657,120]
[320810142,1711564246059,-5000.0,0.000499,120]
[320810144,1711564246068,-10000.0,0.000499,120]
[320810147,1711564246077,-393.28,0.000499,120]
[320810149,1711564246086,-151.79,0.000499,120]
[320810151,1711564246095,-369.0,0.0005,120]
[320810154,1711564246105,-1500.0,0.0005,2]
[320810155,1711564246115,-1500.0,0.0005,2]
[320810158,1711564246125,-1181.77,0.0005,2]
[320810159,1711564246134,-1500.0,0.0005,2]
[320810161,1711564246144,-1500.0,0.0005,2]
[320810163,1711564246153,-1500.0,0.0005,2]
[320810165,1711564246162,-20000.0,0.0005,120]
[320810168,1711564246172,-222.13889347,0.0005,120]
[320810169,1711564246181,-150052.30394209,0.0005,120]
[320810171,1711564246190,-760.88245018,0.0005,30]
[320810173,1711564246200,-2680.34233174,0.0005,60]
[320810176,1711564246209,-325574.62088856,0.0005,2]
[320810177,1711564246218,-228.88211193,0.0005,120]
[320810179,1711564246227,-299.96611053,0.0005,120]
[320810181,1711564246237,-205.44307971,0.0005,20]
[320810183,1711564246246,-679.05639686,0.0005,120]
[320810185,1711564246254,-500.0,0.00050026,120]
[320810187,1711564246263,-500.0,0.00050026,120]
[320810189,1711564246273,-1198.27,0.00050026,120]
[320810191,1711564246282,-500.0,0.00050026,120]
[320810193,1711564246291,-2454.68,0.00050026,120]
[320810195,1711564246301,-2060.33,0.00050026,2]
[320810197,1711564246310,-704.38,0.00050026,120]
[320810199,1711564246319,-7980.88,0.00050026,90]
[320810201,1711564246328,-1542.14,0.00050026,21]
[320810203,1711564246338,-603.24,0.00050324,120]
[320810205,1711564246347,-500.0,0.00051789,120]
[320810207,1711564246357,-1182.34,0.00051792,120]
[320810218,1711564246368,-268920.24117362,0.00052,120]
[320810221,1711564246470,-599.0,0.00052054,120]
[320810223,1711564246479,-2111.45,0.00052296,7]
[320810225,1711564246488,-500.0,0.00052296,120]
[320810227,1711564246497,-616.78,0.00052396,120]
[320810229,1711564246506,-627.21,0.00052396,120]
[320810231,1711564246515,-500.0,0.00052396,120]
[320810233,1711564246524,-967.09,0.00052396,120]
[320810235,1711564246534,-1847.18,0.00052396,120]
[320810237,1711564246544,-1552.86,0.00052396,120]
[320810239,1711564246554,-1530.87,0.00052396,120]
[320810241,1711564246562,-500.0,0.00052396,120]
[320810243,1711564246574,-8913.75,0.00052396,120]
[320810245,1711564246583,-500.0,0.00052396,120]
[320810247,1711564246592,-500.0,0.00052766,120]
[320810249,1711564246601,-455.25694826,0.00052766,120]
[320810251,1711564246611,-1198.27,0.00052766,120]
[320810253,1711564246620,-500.0,0.00052766,120]
[320810255,1711564246629,-2454.68,0.00052766,120]
[320810257,1711564246638,-2060.33,0.00052766,2]
[320810259,1711564246648,-704.38,0.00052766,120]
[320810261,1711564246657,-7980.88,0.00052766,90]
[320810263,1711564246666,-1542.14,0.00052766,21]
[320810265,1711564246675,-2000.0,0.000528,110]
[320810267,1711564246684,-5000.0,0.000528,120]
[320810269,1711564246694,-150.5,0.0005287,35]
[320810271,1711564246702,-301.0,0.0005287,35]
[320810272,1711564246711,-150.5,0.0005287,35]
[320810273,1711564246721,-150.5,0.0005288,35]
[320810274,1711564246729,-301.0,0.0005288,35]
[320810275,1711564246739,-150.5,0.0005288,35]
[320810277,1711564246748,-150.5,0.0005289,35]
[320810279,1711564246757,-301.0,0.0005289,35]
[320810281,1711564246766,-150.5,0.0005289,35]
[320810283,1711564246775,-12947.98591398,0.000529,30]
[320810286,1711564246791,-9384.74028346,0.000529,30]
[320810288,1711564246800,-6013.28300721,0.000529,30]
[320810290,1711564246810,-8511.61776569,0.000529,30]
[320810292,1711564246821,-3584.24434251,0.000529,30]
[320810294,1711564246833,-1268.93575366,0.000529,30]
[320810297,1711564246846,-1904.54102534,0.000529,30]
[320810299,1711564246855,-1292.43385606,0.000529,30]
[320810301,1711564246866,-1924.32759972,0.000529,30]
[320810435,1711564248118,-4158.56690725,0.000529,30]
[320810437,1711564248127,-1127.7617194,0.000529,30]
[320810439,1711564248136,-600.9767009,0.000529,30]
[320810441,1711564248145,-996.60502021,0.000529,30]
[320810443,1711564248158,-2230.88795885,0.000529,30]
[320810445,1711564248166,-288.90459144,0.000529,30]
[320810447,1711564248176,-474.37287315,0.000529,30]
[320811614,1711565132079,988.622348,0.00019849,2]
[320811616,1711565200358,500.0,0.00019849,2]
[320811617,1711565213130,24900.0,0.00019849,2]
[320811618,1711565218031,384.777474,0.00019849,2]
[320811619,1711565218326,500.0,0.00019849,2]
[320811620,1711565237980,213.76526333,0.00019849,2]
[320811621,1711565242380,500.0,0.00019849,2]
[320811622,1711565254054,213.76526333,0.00019849,2]
[320811623,1711565260347,500.0,0.00019849,2]
[320811624,1711565266506,165.976935,0.00019608,2]
[320811625,1711565276042,155.00775039,0.00019849,2]
[320811626,1711565276334,500.0,0.00019849,2]
[320811627,1711565294352,500.0,0.00019849,2]
[320811628,1711565297987,155.00775039,0.00019849,2]
[320811629,1711565315996,155.00620025,0.00019849,2]
[320811630,1711565316339,500.0,0.00019849,2]
[320811631,1711565327803,5000.0,0.0002065,9]
[320811632,1711565335988,155.00620025,0.00019849,2]
[320811633,1711565336345,500.0,0.00019849,2]
[320811634,1711565354003,155.00620025,0.00019849,2]
[320811635,1711565354345,500.0,0.00019849,2]
[320811636,1711565372350,45.05440135,0.00019849,2]
[320811637,1711565386717,-155.00620025,0.00019848,2]
[320811638,1711565386868,-454.94559865,0.00019849,2]
[320811639,1711565386897,-155.00620025,0.00019849,2]
[320811640,1711565386925,-359.7326482,0.0002051,2]
[320811641,1711565386950,-1574.38275608,0.0002051,2]
[320811642,1711565386979,-214.8103191,0.0002051,2]
[320811643,1711565387004,-192.20239395,0.00020511,2]
[320811644,1711565387029,-1151.20557014,0.00020522,2]
[320811645,1711565387056,-194.119164,0.00020623,2]
[320811646,1711565387081,-155.43334056,0.00020893,2]
[320811647,1711565387105,-400.0,0.00020893,2]
[320811648,1711565387130,-166.19644698,0.00020893,2]
[320811649,1711565387157,-155.42227133,0.00020893,2]
[320811650,1711565387182,-405.72925592,0.00020894,2]
[320811651,1711565387207,-155.11478494,0.00020895,2]
[320811652,1711565387232,-437.35894058,0.00020895,2]
[320811653,1711565387258,-225.0111954,0.00020895,2]
[320811654,1711565387285,-270.62040597,0.00020895,2]
[320811655,1711565387313,-205.37769357,0.00020895,2]
[320811656,1711565387341,-3444.03044866,0.00020895,2]
[320811657,1711565387367,-155.13807288,0.00020895,2]
[320811658,1711565387393,-929.41350017,0.00020895,2]
[320811659,1711565387420,-1350.36029761,0.00020895,2]
[320811660,1711565387448,-327.24016799,0.00020895,2]
[320811661,1711565387474,-1138.1612351,0.00020895,2]
[320811662,1711565387498,-322.828959,0.00020895,2]
[320811663,1711565387523,-187.35685752,0.00020895,2]
[320811664,1711565387549,-281.16717003,0.00020895,2]
[320811665,1711565387574,-686.05454832,0.00020895,2]
[320811666,1711565387599,-172.3213079,0.00020895,2]
[320811667,1711565387624,-1301.46396623,0.00020896,2]
[320811668,1711565387649,-330.0521495,0.00021813,2]
[320811669,1711565387675,-166.666666,0.00021918,2]
[320811670,1711565387701,-3704.91014556,0.00022,2]
[320811671,1711565387726,-166.666666,0.00022431,2]
[320811672,1711565387753,-166.666666,0.00022944,2]
[320811673,1711565387779,-241.83291114,0.00023,2]
[320811674,1711565387806,-621.64694397,0.00023142,2]
[320811675,1711565387832,-166.666666,0.00023456,2]
[320811676,1711565387857,-166.666666,0.00023969,2]
[320811677,1711565387887,-620.0823472,0.00024299,2]
[320811678,1711565387915,-166.666666,0.00024482,2]
[320811679,1711565387942,-1579.5366994,0.00024899,2]
[320811680,1711565387969,-328.56845406,0.00024997,2]
[320811681,1711565387996,-560.02439842,0.00024997,2]
[320811682,1711565388024,-3153.78974183,0.00024998,2]
[320811683,1711565388049,-534.61946006,0.00024999,2]
[320811684,1711565388075,-500.0,0.00024999,2]
[320811685,1711565388101,-500.0,0.00024999,2]
[320811686,1711565388131,-500.0,0.00024999,2]
[320811687,1711565388159,-500.0,0.00024999,2]
[320811688,1711565388189,-500.0,0.00024999,2]
[320811689,1711565388217,-500.0,0.00024999,2]
[320811690,1711565388247,-500.0,0.00024999,2]
[320811691,1711565388275,-306.37956147,0.00024999,2]
[320811692,1711565388302,-200.0,0.0002524,2]
[320811693,1711565388329,-152.11549897,0.00026185,2]
[320811694,1711565388356,-1620.29999842,0.00027,2]
[320811695,1711565388383,-1407.63,0.00027397,7]
[320811696,1711565388410,-1579.53669936,0.00027553,2]
[320811697,1711565388437,-298.11639514,0.00027639,2]
[320811698,1711565388464,-500.11623501,0.00027738,2]
[320811699,1711565388490,-500.0,0.00027738,2]
[320811700,1711565388517,-500.0,0.00027738,2]
[320811701,1711565388542,-420.2708428,0.00027738,2]
[320811702,1711565388567,-500.0,0.00027738,2]
[320811703,1711565388596,-500.0,0.00027738,2]
[320811704,1711565388621,-151.0,0.00027738,2]
[320811705,1711565388646,-500.0,0.00027738,2]
[320811706,1711565388671,-500.0,0.00027739,2]
[320811707,1711565388698,-1407.63,0.00027739,7]
[320811708,1711565388723,-500.0,0.00027739,2]
[320811709,1711565388750,-500.0,0.00027739,2]
[320811710,1711565388866,-500.0,0.00027739,2]
[320811711,1711565388896,-555.21609508,0.00028192,2]
[320811712,1711565388921,-500.0,0.00028192,2]
[320811713,1711565388947,-988.622348,0.00029774,2]
[320811714,1711565388974,-500.0,0.00029998,2]
[320811715,1711565388999,-500.0,0.00029998,2]
[320811716,1711565389025,-500.0,0.00029998,2]
[320811717,1711565389053,-500.0,0.00029998,2]
[320811718,1711565389079,-500.0,0.00029998,2]
[320811719,1711565389107,-500.0,0.00029998,2]
[320811720,1711565389136,-507.79589775,0.00029998,2]
[320811721,1711565389163,-500.0,0.00029999,2]
[320811722,1711565389190,-500.0,0.00029999,2]
[320811723,1711565389215,-403.31480138,0.00029999,2]
[320811724,1711565389240,-427.16848296,0.00029999,2]
[320811725,1711565389265,-500.0,0.00029999,2]
[320811726,1711565389293,-500.0,0.00029999,2]
[320811727,1711565389318,-500.0,0.00029999,2]
[320811728,1711565389343,-625.07286727,0.00029999,2]
[320811729,1711565389369,-500.0,0.00029999,2]
[320811730,1711565389395,-500.0,0.00029999,2]
[320811731,1711565389420,-500.0,0.00029999,2]
[320811732,1711565389446,-500.0,0.00029999,2]
[320811733,1711565389472,-835.61,0.00029999,2]
[320811734,1711565389497,-500.0,0.00029999,2]
[320811735,1711565389523,-500.0,0.00029999,2]
[320811736,1711565389551,-500.0,0.00029999,2]
[320811737,1711565389576,-500.0,0.00029999,2]
[320811738,1711565389603,-500.0,0.00029999,2]
[320811739,1711565389630,-500.0,0.00029999,2]
[320811740,1711565389655,-1711.88,0.00029999,2]
[320811741,1711565389681,-500.0,0.00029999,2]
[320811742,1711565389707,-1287.71,0.00029999,2]
[320811743,1711565389733,-500.0,0.00029999,2]
[320811744,1711565389759,-500.0,0.00029999,2]
[320811745,1711565389785,-406.94525057,0.00029999,2]
[320811746,1711565389814,-500.0,0.00029999,2]
[320811747,1711565389841,-6064.36,0.00029999,2]
[320811748,1711565389866,-6753.23105326,0.0003,4]
[320811749,1711565389898,-598.48601028,0.0003,2]
[320811750,1711565389962,-925.63844725,0.0003,4]
[320811751,1711565389988,-402.0,0.0003,2]
[320811752,1711565393065,214.11568386,0.000205,2]
[320811753,1711565395216,500.0,0.00028192,2]
[320811754,1711565401867,1431.88909804,0.00027899,2]
[320811755,1711565402370,500.0,0.00019849,2]
[320811756,1711565403760,970.54,0.00029999,2]
[320811757,1711565404026,224.29212023,0.00019849,2]
[320811758,1711565405494,-155.46155415,0.00030134,4]
[320811759,1711565405521,-275.43953504,0.00030134,4]
[320811760,1711565405545,-192.09614906,0.00030134,4]
[320811761,1711565405573,-214.66541282,0.00030134,4]
[320811762,1711565405599,-500.0,0.00030135,2]
[320811763,1711565405624,-500.0,0.00030136,2]
[320811764,1711565405651,-500.0,0.00030136,2]
[320811765,1711565405677,-500.0,0.00030136,2]
[320811766,1711565405703,-500.0,0.00030136,2]
[320811767,1711565405730,-669.03,0.00030136,2]
[320811768,1711565405757,-1275.93,0.00030136,2]
[320811769,1711565405785,-500.0,0.00030136,2]
[320811770,1711565405814,-956.79,0.00030136,2]
[320811771,1711565405840,-6234.16,0.00030136,2]
[320811772,1711565405872,-6250.0,0.00030137,120]
[320811773,1711565405901,-206.68502978,0.00030207,2]
[320811774,1711565405926,-382.94339108,0.00030207,2]
[320811775,1711565406052,-491.36336715,0.00030207,2]
[320811776,1711565406082,-1579.53669936,0.00030208,2]
[320811777,1711565406537,-500.0,0.00030478,2]
[320811778,1711565406569,-500.0,0.00030478,2]
[320811779,1711565406596,-207.00769808,0.00030478,2]
[320811780,1711565406622,-500.0,0.00030478,2]
[320811781,1711565406648,-500.0,0.00030478,2]
[320811782,1711565406673,-500.0,0.00030478,2]
[320811783,1711565406699,-151.0,0.00030478,2]
[320811784,1711565406725,-500.0,0.00030479,2]
[320811785,1711565406750,-1407.63,0.00030479,7]
[320811786,1711565406774,-500.0,0.00030479,2]
[320811787,1711565406798,-500.0,0.00030479,2]
[320811788,1711565406827,-500.0,0.00030932,2]
[320811789,1711565406852,-500.0,0.00030932,2]
[320811790,1711565406876,-298.11639513,0.00031578,2]
[320811791,1711565406902,-500.0,0.00032739,2]
[320811792,1711565406929,-500.0,0.00032739,2]
[320811793,1711565406952,-500.0,0.00032739,2]
[320811794,1711565406978,-500.0,0.00032739,2]
[320811795,1711565407002,-500.0,0.00032739,2]
[320811796,1711565407040,-835.61,0.00032739,2]
[320811797,1711565407069,-500.0,0.00032739,2]
[320811798,1711565407094,-500.0,0.00032739,2]
[320811799,1711565407122,-500.0,0.00032739,2]
[320811800,1711565407145,-1711.88,0.00032739,2]
[320811801,1711565407169,-1287.71,0.00032739,2]
[320811802,1711565407193,-6064.36,0.00032739,2]
[320811803,1711565407218,-970.54,0.00032739,2]
[320811804,1711565407242,-1579.53669936,0.00032862,2]